bitfinex/quotes_SOLUSD_20260114
["timestamp","ask_amount","ask_price","bid_price","bid_amount"]
[1768423255970,0.68961972,147.43,147.39,0.69827351]
[1768423256170,0.68961972,147.43,147.39,7.48293076]
[1768423257100,7.49281779,147.45,147.4,7.48244111]
[1768423257276,4.54713802,147.44,147.4,7.48244111]
[1768423257474,4.54713802,147.44,147.4,0.69827351]
[1768423257774,4.54713802,147.44,147.4,7.48243007]
[1768423258983,0.71080472,147.45,147.41,0.69827351]
[1768423259994,0.71080472,147.45,147.41,7.48194587]
[1768423260195,16.94844006,147.51,147.42,0.69827351]
[1768423260395,4.54713802,147.48,147.42,0.69827351]
[1768423260777,4.56853053,147.47,147.42,0.69827351]
[1768423261473,4.56853053,147.47,147.43,6.78288001]
[1768423261676,0.68941005,147.46,147.42,6.78332873]
[1768423262183,4.54735195,147.46,147.42,6.78332873]
[1768423262780,4.54735195,147.46,147.42,0.69827351]
[1768423263181,0.68919612,147.47,147.42,0.69827351]
[1768423263382,4.54713802,147.47,147.42,0.69827351]
[1768423264496,4.56853053,147.46,147.42,7.48158853]
[1768423265599,0.68941005,147.45,147.41,6.78349214]
[1768423265776,0.68941005,147.45,147.41,7.48176565]
[1768423265972,0.68941005,147.45,147.42,0.69827351]
[1768423266180,4.54713802,147.46,147.42,0.69827351]
[1768423266592,0.68919612,147.46,147.42,0.69827351]
[1768423267379,0.68919612,147.46,147.42,7.48160552]
[1768423267585,0.68941005,147.44,147.39,17.65957804]
[1768423267786,0.71080472,147.45,147.41,7.48166391]
[1768423268083,0.71080472,147.45,147.41,0.69827351]
[1768423270586,7.49299183,147.45,147.41,0.69827351]
[1768423272913,0.71058863,147.43,147.38,13.05827351]
[1768423273088,0.71058863,147.43,147.39,7.48298651]
[1768423273279,0.68941005,147.42,147.37,6.78523026]
[1768423273484,0.71037684,147.41,147.37,7.48350377]
[1768423274103,6.78272859,147.44,147.36,0.69827351]
[1768423274104,4.54756162,147.4,147.36,0.69827351]
[1768423274409,4.56874662,147.43,147.37,0.69827351]
[1768423274599,4.56874662,147.43,147.38,0.69827351]
[1768423275106,0.68941005,147.4,147.37,0.69827351]
[1768423275309,0.68941005,147.4,147.36,0.69827351]
[1768423275527,4.56874662,147.41,147.37,0.69827351]
[1768423275697,7.49381375,147.43,147.38,0.69827351]
[1768423275892,11.35175565,147.43,147.38,0.69827351]
[1768423276099,0.68919612,147.42,147.38,0.69827351]
[1768423276618,0.71058863,147.41,147.37,7.48387844]
[1768423276919,4.56853053,147.41,147.37,0.69827351]
[1768423277211,0.71037684,147.39,147.35,35.76162734]
[1768423277994,4.56831874,147.39,147.35,35.76162734]
[1768423278191,0.71037684,147.39,147.35,35.76162734]
[1768423278397,0.71037684,147.39,147.35,42.54808825]
[1768423278998,0.71037684,147.39,147.35,35.76162734]
[1768423280123,10.64305219,147.39,147.35,35.76162734]
[1768423280316,0.68919612,147.39,147.35,35.76162734]
[1768423280619,0.65642991,147.4,147.36,0.67865554]
[1768423280789,4.51437181,147.4,147.36,0.67865554]
[1768423282017,7.44194135,147.42,147.37,0.69233736]
[1768423282219,0.65822618,147.38,147.35,35.06335383]
[1768423283423,0.65822618,147.38,147.35,35.75569119]
[1768423284621,3.88144077,147.36,147.32,0.2]
[1768423284804,3.8579419,147.35,147.32,0.89233736]
[1768423285011,3.8579419,147.35,147.32,0.2]
[1768423285208,4.43990432,147.35,147.32,0.2]
[1768423285411,2.47461315,147.36,147.32,0.2]
[1768423285599,2.57361315,147.36,147.32,0.89233736]
[1768423286200,0.57713279,147.35,147.32,0.2]
[1768423288723,3.05174594,147.35,147.32,0.2]
[1768423288935,0.10378133,147.34,147.32,0.2]
[1768423289121,2.47461315,147.33,147.3,7.68118455]
[1768423289435,2.47461315,147.34,147.3,7.68118455]
[1768423289939,2.47461315,147.31,147.29,0.2]
[1768423290231,2.47461315,147.31,147.27,7.68244899]
[1768423290232,2.84901242,147.31,147.27,7.68244899]
[1768423290617,2.47461315,147.31,147.28,6.78964249]
[1768423290807,2.47461315,147.31,147.27,7.68242927]
[1768423291324,2.85657557,147.32,147.27,7.68242927]
[1768423292108,0.099,147.31,147.27,7.68242927]
[1768423292309,2.85657557,147.32,147.27,7.68242927]
[1768423292614,2.47461315,147.31,147.27,7.68242927]
[1768423293220,7.1699476,147.32,147.27,7.68242927]
[1768423293221,2.85657557,147.32,147.27,7.68242927]
[1768423293913,2.47461315,147.35,147.29,0.69233736]
[1768423294123,6.78583846,147.37,147.3,2.47461315]
[1768423294307,112.74189493,147.38,147.32,0.69233736]
[1768423294508,9.64189493,147.38,147.32,0.69233736]
[1768423294707,36.39176424,147.42,147.34,0.69233736]
[1768423294708,0.38196242,147.4,147.34,0.69233736]
[1768423295008,103.1,147.45,147.37,0.69233736]
[1768423295009,0.099,147.43,147.37,0.69233736]
[1768423295207,2.57361315,147.43,147.38,0.63233745]
[1768423295426,0.099,147.43,147.38,0.63233745]
[1768423295819,2.57361315,147.43,147.38,0.63233745]
[1768423296623,9.35684918,147.43,147.38,0.63233745]
[1768423296817,16.95495087,147.45,147.38,0.63233745]
[1768423296818,9.35619711,147.44,147.38,6.78503336]
[1768423297127,6.88158396,147.44,147.39,0.69233736]
[1768423297310,9.35619711,147.44,147.39,0.69233736]
[1768423297512,6.88158396,147.44,147.39,0.69233736]
[1768423297726,9.35619711,147.44,147.39,0.69233736]
[1768423300530,2.91657548,147.46,147.39,0.69233736]
[1768423300743,0.099,147.45,147.4,0.69233736]
[1768423301131,2.57361315,147.45,147.4,0.69233736]
[1768423302143,2.57361315,147.5,147.44,0.69233736]
[1768423303075,105.57461315,147.51,147.45,0.69233736]
[1768423303225,105.57461315,147.51,147.45,0.63233738]
[1768423303542,0.15839998,147.51,147.46,6.78150006]
[1768423303842,0.15839998,147.51,147.46,6.72150008]
[1768423304942,9.41231186,147.51,147.46,6.72150008]
[1768423305251,0.4391267,147.5,147.45,0.69233736]
[1768423305432,2.47461315,147.49,147.45,0.69233736]
[1768423305761,9.75532102,147.52,147.46,0.69233736]
[1768423306041,9.25299694,147.53,147.47,0.69233736]
[1768423306223,9.75455514,147.54,147.47,0.69233736]
[1768423306425,2.47461315,147.54,147.47,0.69233736]
[1768423306632,9.25243798,147.54,147.47,0.69233736]
[1768423307455,2.47461315,147.53,147.47,0.69233736]
[1768423307950,2.47461315,147.53,147.48,0.69233736]
[1768423309019,7.27575751,147.54,147.48,0.69233736]
[1768423309224,2.47461315,147.53,147.48,0.69233736]
[1768423309942,2.47461315,147.53,147.49,0.69233736]
[1768423310633,11.07791597,147.55,147.49,0.69233736]
[1768423310941,2.47461315,147.54,147.49,0.69233736]
[1768423311340,0.10298933,147.53,147.49,0.69233736]
[1768423313542,9.75453991,147.54,147.49,7.47235692]
[1768423314445,9.75453991,147.54,147.49,0.69233736]
[1768423316263,9.75453991,147.54,147.49,7.47243604]
[1768423316565,9.75453991,147.54,147.5,0.72041749]
[1768423316858,2.97657546,147.54,147.5,0.6604175]
[1768423317170,2.47461315,147.55,147.5,6.77956832]
[1768423318348,9.25208095,147.55,147.49,6.78012068]
[1768423318854,9.25208095,147.55,147.5,0.72041749]
[1768423319763,6.7774678,147.55,147.5,0.72041749]
[1768423319964,9.35108095,147.55,147.5,0.72041749]
[1768423320269,9.35108095,147.55,147.51,0.72041749]
[1768423320442,9.25208095,147.55,147.51,0.72041749]
[1768423320639,6.7774678,147.55,147.51,0.72041749]
[1768423321063,6.8764678,147.55,147.51,0.72041749]
[1768423321267,3.03194582,147.54,147.5,0.72041749]
[1768423322968,2.47461315,147.55,147.51,0.72041749]
[1768423324658,2.57461315,147.57,147.52,0.72041749]
[1768423324863,7.43388146,147.57,147.52,0.72041749]
[1768423325358,2.47461315,147.56,147.52,0.72041749]
[1768423325670,3.02740833,147.55,147.51,0.72041749]
[1768423325871,2.47461315,147.55,147.51,0.72041749]
[1768423326073,9.35122422,147.55,147.51,0.72041749]
[1768423326372,9.25222422,147.55,147.51,0.72041749]
[1768423326866,9.25222422,147.55,147.51,0.6604175]
[1768423327069,6.77761107,147.55,147.51,0.6604175]
[1768423327273,2.47461315,147.55,147.47,2.47461315]
[1768423327962,3.12917407,147.55,147.47,2.47461315]
[1768423328275,3.12917407,147.55,147.48,23.73149726]
[1768423329150,3.12917407,147.55,147.49,0.72041749]
[1768423329349,3.12917407,147.55,147.5,6.77966101]
[1768423329576,3.12917407,147.55,147.51,0.72041749]
[1768423329756,0.1,147.57,147.51,0.72041749]
[1768423329963,3.22917407,147.57,147.51,0.72041749]
[1768423330171,10.00563405,147.57,147.51,0.72041749]
[1768423330356,0.65456092,147.55,147.51,0.72041749]
[1768423330960,0.65456092,147.54,147.51,0.72041749]
[1768423331280,3.12917407,147.55,147.51,0.72041749]
[1768423331853,0.65456092,147.55,147.51,7.49957916]
[1768423332179,6.77695551,147.56,147.51,7.49957916]
[1768423332180,2.47461315,147.56,147.52,0.72041749]
[1768423332354,0.1,147.57,147.52,0.72041749]
[1768423333969,3.22917407,147.57,147.52,0.72041749]
[1768423334169,3.22917407,147.57,147.53,0.72041749]
[1768423334364,3.22917407,147.57,147.53,0.6604175]
[1768423335083,0.1,147.57,147.53,0.6604175]
[1768423335596,0.75456092,147.57,147.53,0.6604175]
[1768423336179,0.1,147.57,147.53,6.77819782]
[1768423336360,0.1,147.57,147.54,0.72041749]
[1768423337060,0.4576894,147.61,147.59,0.72041749]
[1768423337279,0.4576894,147.61,147.59,0.66041761]
[1768423338079,0.4576894,147.61,147.55,2.47461315]
[1768423338080,0.4576894,147.61,147.56,6.77690431]
[1768423338869,1.11225032,147.61,147.56,6.77690431]
[1768423339186,1.11225032,147.61,147.57,0.72041749]
[1768423339687,0.65456092,147.59,147.56,0.72041749]
[1768423339891,0.65456092,147.6,147.56,0.72041749]
[1768423340369,0.65456092,147.6,147.56,7.49730745]
[1768423341483,0.4576894,147.61,147.57,0.65567915]
[1768423341981,1.17034858,147.61,147.57,0.65567915]
[1768423342285,10.4198903,147.61,147.57,0.65567915]
[1768423342582,0.71265918,147.6,147.55,7.43285444]
[1768423342762,0.71265918,147.6,147.56,0.65567915]
[1768423343960,9.96242357,147.6,147.56,0.65567915]
[1768423345191,3.18727233,147.57,147.52,13.01567915]
[1768423345487,3.18727233,147.56,147.52,13.01567915]
[1768423345687,0.71265918,147.56,147.52,13.01567915]
[1768423346059,0.71265918,147.56,147.53,0.65567915]
[1768423346282,3.18727233,147.57,147.53,0.65567915]
[1768423347401,4.56771855,147.57,147.53,0.65567915]
[1768423348688,3.85505937,147.56,147.53,0.65567915]
[1768423348883,4.56771855,147.56,147.52,12.36]
[1768423349590,4.56771855,147.56,147.52,19.79435045]
[1768423349893,0.71265918,147.56,147.52,19.79435045]
[1768423350082,4.56771855,147.56,147.52,19.79435045]
[1768423350282,4.56771855,147.56,147.52,13.01567915]
[1768423350484,0.71265918,147.55,147.52,12.36]
[1768423350791,6.7765114,147.57,147.53,0.65567915]
[1768423350792,4.56771855,147.57,147.53,0.65567915]
[1768423351473,0.71265918,147.56,147.53,0.65567915]
[1768423352195,0.71265918,147.56,147.51,7.43470866]
[1768423352380,4.56771855,147.55,147.51,7.43470866]
[1768423352588,3.85505937,147.54,147.51,0.65567915]
[1768423352770,0.71265918,147.54,147.51,0.65567915]
[1768423352971,0.71265918,147.55,147.5,0.65567915]
[1768423353171,11.34476613,147.56,147.5,0.65567915]
[1768423353701,0.71265918,147.55,147.5,0.65567915]
[1768423353993,0.71265918,147.55,147.51,0.65567915]
[1768423354196,11.34532924,147.55,147.51,0.65567915]
[1768423354600,0.71265918,147.54,147.49,19.79568765]
[1768423354803,0.71265918,147.52,147.49,13.01567915]
[1768423355279,0.71265918,147.53,147.49,19.79577898]
[1768423355480,6.77761069,147.55,147.49,12.36]
[1768423355481,0.71265918,147.51,147.49,12.36]
[1768423356097,4.56771855,147.52,147.48,0.65567915]
[1768423356697,0.71265918,147.51,147.47,0.65567915]
[1768423357080,0.71265918,147.51,147.47,7.43665762]
[1768423357280,0.71265918,147.52,147.48,0.65567915]
[1768423357496,0.71265918,147.51,147.47,6.78097847]
[1768423357701,0.71265918,147.5,147.46,6.78138315]
[1768423357888,0.71265918,147.5,147.46,7.4370623]
[1768423358402,4.56771855,147.5,147.45,19.79747115]
[1768423358578,4.56771855,147.5,147.46,7.43716151]
[1768423358780,4.56771855,147.49,147.45,19.79751867]
[1768423358979,0.71265918,147.49,147.45,19.79751867]
[1768423360205,7.4929671,147.49,147.45,13.01567915]
[1768423360582,0.71265918,147.49,147.45,7.43757071]
[1768423360983,0.71265918,147.49,147.46,0.65567915]
[1768423361205,4.56771855,147.5,147.46,0.65567915]
[1768423361502,0.71265918,147.49,147.46,0.65567915]
[1768423361703,11.34703797,147.51,147.46,0.65567915]
[1768423361880,0.71265918,147.51,147.46,0.65567915]
[1768423362083,0.71265918,147.51,147.46,7.43680316]
[1768423363303,11.34695973,147.51,147.46,7.43680316]
[1768423364013,4.56771855,147.51,147.46,7.43680316]
[1768423367007,0.71265918,147.51,147.47,0.65567915]
[1768423368307,0.71265918,147.5,147.47,0.65567915]
[1768423370300,0.71265918,147.5,147.47,7.43662772]
[1768423372117,0.71265918,147.5,147.46,7.47831948]
[1768423372299,0.69417395,147.52,147.47,0.69681942]
[1768423372498,0.69417395,147.52,147.48,0.69681942]
[1768423373496,0.69417395,147.52,147.49,6.78012068]
[1768423374901,4.54923332,147.52,147.48,7.47729082]
[1768423375103,0.69417395,147.5,147.48,6.78043299]
[1768423375322,0.69417395,147.5,147.47,7.47767146]
[1768423376308,0.69417395,147.54,147.49,0.69681942]
[1768423376511,0.69417395,147.53,147.49,0.63681944]
[1768423376705,4.54923332,147.53,147.49,7.41693489]
[1768423377222,0.69417395,147.52,147.49,0.63681944]
[1768423377419,0.69417395,147.51,147.48,6.78038448]
[1768423377725,0.69417395,147.5,147.47,6.78096019]
[1768423378502,0.69417395,147.5,147.47,7.47777961]
[1768423379212,0.69417395,147.5,147.47,0.69681942]
[1768423379417,0.69417395,147.51,147.47,7.47761979]
[1768423380305,0.69417395,147.51,147.47,0.69681942]
[1768423380525,0.69417395,147.5,147.47,0.69681942]
[1768423381224,0.69417395,147.48,147.43,7.47941161]
[1768423381417,0.69417395,147.47,147.43,7.47941161]
[1768423381619,4.54923332,147.46,147.42,7.48015739]
[1768423381921,0.69417395,147.46,147.42,0.69681942]
[1768423382826,0.69417395,147.46,147.42,7.4801372]
[1768423385528,7.4756813,147.46,147.42,0.69681942]
[1768423385737,0.69417395,147.45,147.41,0.69681942]
[1768423385938,0.69417395,147.44,147.41,0.69681942]
[1768423387025,0.69417395,147.43,147.39,19.14460718]
[1768423387538,0.69417395,147.43,147.4,6.78402952]
[1768423387725,7.47600872,147.46,147.41,0.69681942]
[1768423387929,0.69417395,147.49,147.44,0.69681942]
[1768423388238,0.69417395,147.48,147.44,0.69681942]
[1768423388536,0.69417395,147.5,147.46,0.69681942]
[1768423388830,3.85505937,147.51,147.47,0.69681942]
[1768423388831,7.47363755,147.51,147.47,0.69681942]
[1768423389039,7.47363755,147.51,147.46,0.69681942]
[1768423389040,0.69417395,147.5,147.46,0.69681942]
[1768423390141,16.94649234,147.53,147.42,3.85505937]
[1768423390142,0.69417395,147.52,147.48,0.69681942]
[1768423390840,0.69417395,147.52,147.48,4.55187879]
[1768423391226,0.69417395,147.51,147.47,6.7810002]
[1768423391542,0.69417395,147.52,147.48,0.69681942]
[1768423391942,0.69417395,147.53,147.49,0.69681942]
[1768423392162,0.69417395,147.53,147.48,4.55187879]
[1768423392640,0.69417395,147.52,147.48,0.69681942]
[1768423393040,0.69417395,147.52,147.46,0.69681942]
[1768423393232,0.69417395,147.5,147.46,0.69681942]
[1768423393537,0.69417395,147.51,147.47,4.55187879]
[1768423396424,7.47354558,147.51,147.47,4.55187879]
[1768423397247,0.69417395,147.5,147.46,4.55187879]
[1768423397626,0.69417395,147.5,147.45,0.69681942]
[1768423397830,0.69417395,147.5,147.46,3.85505937]
[1768423398336,0.69417395,147.49,147.45,0.69681942]
[1768423398641,0.69417395,147.49,147.46,3.85505937]
[1768423400953,7.4341308,147.5,147.46,4.56570379]
[1768423401547,0.65439947,147.49,147.46,3.85505937]
[1768423401723,0.65439947,147.49,147.45,3.85505937]
[1768423402046,0.65439947,147.49,147.44,3.85505937]
[1768423402247,0.65439947,147.49,147.45,4.56570379]
[1768423403457,7.43458382,147.49,147.45,4.56570379]
[1768423404049,0.65439947,147.48,147.44,4.56570379]
[1768423404254,0.06846,147.54,147.47,4.56570379]
[1768423404255,17.60186632,147.52,147.47,4.56570379]
[1768423404454,0.65439947,147.51,147.47,4.56570379]
[1768423404631,0.65439947,147.51,147.48,0.71064442]
[1768423405442,7.43361508,147.51,147.47,4.56570379]
[1768423405736,0.65439947,147.49,147.44,0.71064442]
[1768423405947,0.65439947,147.49,147.44,4.56570379]
[1768423406252,0.65439947,147.49,147.44,0.71064442]
[1768423406653,0.65439947,147.49,147.44,4.56570379]
[1768423406859,0.65439947,147.49,147.44,0.71064442]
[1768423407031,0.65439947,147.49,147.44,4.56570379]
[1768423407665,7.43497988,147.48,147.44,0.71064442]
[1768423408175,7.40759364,147.48,147.44,0.71064442]
[1768423409030,0.65439947,147.48,147.44,4.56570379]
[1768423409450,0.65439947,147.48,147.44,3.18029283]
[1768423409646,7.4350098,147.48,147.44,3.18029283]
[1768423411749,7.40502153,147.48,147.44,3.18029283]
[1768423411949,0.6244112,147.48,147.44,3.18029283]
[1768423412259,0.6244112,147.48,147.45,0.71064442]
[1768423412852,19.41540578,147.53,147.47,3.18029283]
[1768423413037,16.94575737,147.53,147.48,0.71064442]
[1768423413843,0.65439947,147.52,147.48,0.71064442]
[1768423414953,0.65439947,147.52,147.46,2.46964841]
[1768423415158,0.65439947,147.51,147.46,3.18029283]
[1768423415558,0.65439947,147.51,147.46,0.71064442]
[1768423417257,7.43406048,147.5,147.46,0.71064442]
[1768423418960,0.65439947,147.46,147.43,12.36]
[1768423419262,0.65439947,147.45,147.41,0.71064442]
[1768423419441,0.65439947,147.44,147.4,0.71064442]
[1768423420240,0.65439947,147.45,147.4,0.71064442]
[1768423420441,7.43679455,147.45,147.4,0.71064442]
[1768423422958,26.86134292,147.45,147.4,0.71064442]
[1768423423151,0.65439947,147.44,147.4,0.71064442]
[1768423424559,6.78288001,147.43,147.4,0.71064442]
[1768423424854,6.78262811,147.44,147.4,0.71064442]
[1768423426253,7.43702758,147.44,147.4,0.71064442]
[1768423426772,0.65439947,147.43,147.39,13.07064442]
[1768423428364,7.43754594,147.43,147.39,13.07064442]
[1768423428570,0.65439947,147.41,147.37,0.71064442]
[1768423429848,0.62439947,147.41,147.37,0.71064442]
[1768423430366,2.46964841,147.4,147.36,0.91064442]
[1768423430569,6.78455474,147.4,147.36,0.2]
[1768423430773,2.46964841,147.38,147.36,0.2]
[1768423431075,2.46964841,147.37,147.35,13.02289867]
[1768423431259,2.46964841,147.37,147.35,12.36]
[1768423431569,2.46964841,147.37,147.33,0.86289867]
[1768423431781,3.14049806,147.36,147.33,0.2]
[1768423431956,2.46964841,147.36,147.33,0.2]
[1768423432354,2.46964841,147.36,147.33,0.86289867]
[1768423432649,3.14049806,147.37,147.33,0.86289867]
[1768423432847,0.67084965,147.39,147.34,0.66289867]
[1768423433049,2.46964841,147.38,147.34,0.66289867]
[1768423433576,3.14049806,147.39,147.34,0.66289867]
[1768423434255,2.46964841,147.38,147.34,0.66289867]
[1768423434453,3.14049806,147.38,147.35,0.66289867]
[1768423434652,16.96004482,147.41,147.35,0.66289867]
[1768423434857,3.14049806,147.39,147.35,0.66289867]
[1768423435159,3.14049806,147.4,147.35,0.66289867]
[1768423436379,3.14049806,147.4,147.36,7.44900073]
[1768423436775,2.46964841,147.39,147.36,7.44900073]
[1768423438250,2.46964841,147.39,147.37,0.66289867]
[1768423438654,2.46964841,147.39,147.36,7.44900073]
[1768423439457,3.14049806,147.39,147.36,7.44900073]
[1768423439778,2.46964841,147.39,147.36,7.44900073]
[1768423440179,0.67084965,147.4,147.37,0.66289867]
[1768423440383,3.14049806,147.4,147.37,0.66289867]
[1768423440892,2.46964841,147.41,147.37,0.66289867]
[1768423441272,3.14049806,147.41,147.37,0.66289867]
[1768423442184,0.67084965,147.42,147.39,0.66289867]
[1768423442481,0.67084965,147.43,147.39,0.66289867]
[1768423442697,2.46964841,147.44,147.39,0.66289867]
[1768423442882,3.14049806,147.44,147.39,0.66289867]
[1768423443183,2.46964841,147.43,147.39,0.66289867]
[1768423443589,3.14049806,147.43,147.39,0.66289867]
[1768423444664,3.14049806,147.43,147.39,7.44717179]
[1768423445781,0.67084965,147.44,147.4,0.66289867]
[1768423446285,3.14049806,147.44,147.4,0.66289867]
[1768423448387,0.67084965,147.42,147.38,0.66289867]
[1768423448599,0.67084965,147.42,147.38,7.44807527]
[1768423449286,0.67084965,147.42,147.39,0.66289867]
[1768423449981,9.92386409,147.42,147.38,0.66289867]
[1768423450790,7.45421568,147.42,147.38,0.66289867]
[1768423451968,0.67084965,147.4,147.36,19.80882493]
[1768423452691,0.67084965,147.4,147.37,0.66289867]
[1768423453292,0.64084965,147.4,147.37,0.66289867]
[1768423454090,2.46964841,147.41,147.37,7.44845693]
[1768423455294,3.14049806,147.41,147.37,7.44845693]
[1768423456485,0.67084965,147.4,147.37,0.66289867]
[1768423457891,0.67084965,147.4,147.36,7.44881105]
[1768423458094,0.67084965,147.4,147.36,0.66289867]
[1768423458667,9.92446775,147.41,147.37,0.66289867]
[1768423460187,7.45481934,147.41,147.37,0.66289867]
[1768423464194,0.7125998,147.4,147.37,0.66289867]
[1768423467483,7.49704217,147.4,147.37,0.66289867]
[1768423467682,0.7125998,147.39,147.35,13.03587938]
[1768423468399,7.49771939,147.39,147.36,0.67587938]
[1768423469993,7.49785823,147.38,147.35,12.36]
[1768423470610,7.49785823,147.38,147.35,13.03587938]
[1768423471280,7.49785823,147.38,147.33,0.2]
[1768423471281,28.32512135,147.38,147.33,0.2]
[1768423471496,4.57691001,147.35,147.33,0.2]
[1768423471693,3.86431021,147.35,147.32,0.2]
[1768423472182,6.78702321,147.34,147.32,0.2]
[1768423472597,6.75702319,147.34,147.32,0.2]
[1768423474002,7.46962299,147.34,147.32,0.2]
[1768423474605,11.3339332,147.34,147.32,0.2]
[1768423476600,0.7125998,147.33,147.32,0.2]
[1768423476794,0.6825998,147.33,147.32,0.2]
[1768423478403,11.33439388,147.33,147.31,0.2]
[1768423478792,7.47008367,147.33,147.31,0.2]
[1768423479195,7.49979115,147.34,147.31,0.2]
[1768423479389,11.36410136,147.34,147.31,0.2]
[1768423480909,4.57691001,147.33,147.31,0.2]
[1768423481202,4.54691001,147.33,147.31,0.2]
[1768423482212,0.6825998,147.33,147.31,0.2]
[1768423482787,7.47033426,147.33,147.31,0.2]
[1768423483494,11.33464447,147.33,147.31,0.2]
[1768423484587,7.50054441,147.32,147.29,0.2]
[1768423484911,7.47054441,147.32,147.29,0.87587938]
[1768423485084,11.33485462,147.32,147.29,0.2]
[1768423485907,11.3048546,147.32,147.29,0.2]
[1768423486414,11.2748546,147.32,147.29,0.2]
[1768423487114,10.65225482,147.32,147.29,0.2]
[1768423488306,4.57691001,147.32,147.29,0.2]
[1768423488611,0.7125998,147.31,147.29,0.2]
[1768423489110,4.57691001,147.31,147.29,0.2]
[1768423490498,7.48542821,147.3,147.29,0.2]
[1768423490698,7.45542821,147.3,147.29,0.2]
[1768423491112,11.31973842,147.3,147.27,0.92294615]
[1768423491419,7.45542821,147.3,147.27,0.92294615]
[1768423492421,4.56087217,147.28,147.25,28.72400533]
[1768423492590,0.69656196,147.28,147.25,29.44695148]
[1768423494907,11.35024263,147.29,147.25,29.44695148]
[1768423495313,0.69656196,147.31,147.26,0.72294615]
[1768423495490,4.56087217,147.31,147.26,0.72294615]
[1768423496599,11.34948419,147.31,147.26,0.72294615]
[1768423498017,3.86431021,147.3,147.26,0.72294615]
[1768423498518,11.3497953,147.3,147.26,0.72294615]
[1768423498695,11.3497953,147.3,147.25,28.72400533]
[1768423498696,0.69656196,147.29,147.25,28.72400533]
[1768423498893,3.86431021,147.29,147.25,28.72400533]
[1768423499218,3.86431021,147.28,147.25,28.72400533]
[1768423499409,3.83431022,147.28,147.25,28.72400533]
[1768423500104,10.62422263,147.28,147.25,28.72400533]
[1768423500424,3.83431022,147.28,147.25,28.72400533]
[1768423500796,0.69656196,147.31,147.26,0.72294615]
[1768423501318,0.66656197,147.31,147.27,0.72294615]
[1768423501528,3.86431021,147.3,147.27,0.72294615]
[1768423501892,3.86431021,147.29,147.25,29.44695148]
[1768423502111,3.86431021,147.28,147.25,29.44695148]
[1768423502397,3.86431021,147.26,147.25,28.72400533]
[1768423502596,3.86431021,147.26,147.23,0.2]
[1768423503193,57.69361295,147.33,147.25,0.72294615]
[1768423503399,0.69656196,147.29,147.25,0.72294615]
[1768423504117,7.48638619,147.28,147.24,0.72294615]
[1768423504321,7.48638619,147.28,147.23,10.85607382]
[1768423504322,0.69656196,147.27,147.23,4.78725636]
[1768423504797,0.69656196,147.27,147.24,3.86431021]
[1768423505099,0.69656196,147.27,147.23,11.57934804]
[1768423506821,0.69656196,147.27,147.23,4.78725636]
[1768423507014,0.69656196,147.27,147.24,3.86431021]
[1768423509223,0.69656196,147.27,147.23,7.7150123]
[1768423509410,0.69656196,147.27,147.23,4.78725636]
[1768423509607,0.69656196,147.27,147.23,11.579204]
[1768423509834,0.69656196,147.27,147.24,3.86431021]
[1768423510704,0.69656196,147.27,147.23,10.85625785]
[1768423511336,0.69656196,147.27,147.23,11.579204]
[1768423512503,0.69656196,147.27,147.24,0.72294615]
[1768423512739,0.69656196,147.29,147.26,0.72294615]
[1768423513038,0.69656196,147.3,147.26,4.58725636]
[1768423513526,0.69656196,147.31,147.27,4.58725636]
[1768423514730,0.69656196,147.31,147.27,11.37744315]
[1768423515128,0.69656196,147.31,147.27,10.654497]
[1768423515930,0.69656196,147.31,147.27,11.37744315]
[1768423517036,0.69656196,147.31,147.28,3.86431021]
[1768423517331,0.69656196,147.29,147.24,0.72294615]
[1768423517533,0.63656198,147.28,147.24,0.72294615]
[1768423517840,3.86431021,147.26,147.23,0.2]
[1768423518010,3.86431021,147.25,147.22,0.2]
[1768423518211,3.86431021,147.24,147.19,11.58104446]
[1768423518425,3.86431021,147.25,147.19,0.92294615]
[1768423518614,10.65617895,147.24,147.19,4.78725636]
[1768423518838,3.86431021,147.23,147.19,7.71672847]
[1768423519343,3.86431021,147.21,147.19,0.2]
[1768423519635,6.79186874,147.24,147.2,0.72294615]
[1768423519811,3.86431021,147.22,147.18,0.72294615]
[1768423520208,3.86431021,147.21,147.17,0.2]
[1768423520409,3.83431022,147.2,147.17,0.91476271]
[1768423520613,3.80431023,147.2,147.17,0.91476271]
[1768423520835,3.86431021,147.2,147.17,0.91476271]
[1768423521038,3.86431021,147.19,147.17,0.2]
[1768423521425,3.86431021,147.18,147.15,0.69080765]
[1768423521726,3.86431021,147.18,147.14,0.2]
[1768423521727,4.51685408,147.17,147.14,0.2]
[1768423523739,0.65254387,147.17,147.14,0.2]
[1768423523938,19.17377704,147.2,147.15,0.69080765]
[1768423524239,6.7931896,147.21,147.16,0.69080765]
[1768423524443,3.86431021,147.22,147.17,0.69080765]
[1768423525123,19.82964132,147.23,147.18,0.69080765]
[1768423525324,11.31395153,147.23,147.18,0.69080765]
[1768423525520,0.19257356,147.26,147.21,0.69080765]
[1768423525743,0.19717327,147.24,147.19,0.69080765]
[1768423526044,4.51230037,147.23,147.19,0.69080765]